{"text_format":"1","workbook":"xlsx","n_sheets":3,"sheets":["Profit_Loss","Foreign_Exchange","Best_Buys"],"not_rendered":{"charts":0,"images":12,"macros":1,"external_links":0,"defined_names":2,"comments":0,"pivot_tables":0},"unopened":[],"bounds":{"document_bytes":16777216,"sheet_cells":100000,"rows_first":2000,"rows_last":500,"rows_between":2000,"halvings":0,"cell_chars":16384,"cell_head_chars":4096},"cells_cut":0,"cells_raw":0,"read":"whole","date_system":"1900"}

{"sheet":"Profit_Loss","index":0,"n_rows":30,"n_cols":41,"rows_kept":30,"cut":false,"hidden":false,"merged":[[29,13,29,17],[24,16,24,18],[24,19,24,22],[25,16,25,18],[25,19,25,22],[13,13,13,17],[21,13,21,17],[2,1,3,27],[7,13,7,17]]}
[]
[]
[null,"Level 2 - Money 2                                                                                                            (Profit & Loss and HP)                                                                                                                                                                                                                                                                                                    Created by Mr.Lafferty@mathsrevision.com"]
[null,null,null,null,null,null,null,null,null,null,null,null,null,null,null,null,null,null,null,null,null,null,null,null,null,null,null,null,null,null,null,null,null,null,null,null,null,null,{"$f":"ROUND(RAND()*(4-1)+1,0)","v":2},1,10]
[null,null,null,null,null,null,null,null,null,null,null,null,null,null,null,null,null,null,null,null,null,null,null,null,null,null,null,null,null,null,null,{"$f":"AO8","v":25},"%",null,null,null,null,null,null,2,25]
[null,{"$f":"\"Q1. Paul buys at TV which normally costs £\"&AF6&\". There is currently a \"&AF5&\"% discount on the TV.\"","v":"Q1. Paul buys at TV which normally costs £570. There is currently a 25% discount on the TV."},null,null,null,null,null,null,null,null,null,null,null,null,null,null,null,null,null,null,null,null,null,null,null,null,null,null,null,null,null,{"$f":"ROUND(RAND()*(90-40)+40,0)*10","v":570},null,null,null,null,null,null,null,3,50]
[null,null,null,null,null,null,null,null,null,null,null,null,null,null,null,null,null,null,null,null,null,null,null,null,null,null,null,null,null,null,null,{"$f":"AF6-(AF5/100*AF6)","v":427.5},null,null,null,null,null,null,null,4,75]
[null,null,"How much will Paul pay ?",null,null,null,null,null,null,null,null,null,"£",null,null,null,null,null,null,null,null,null,null,null,null,null,null,null,null,null,null,null,null,null,null,null,null,null,null,null,{"$f":"LOOKUP(AM4,AN4:AN7,AO4:AO7)","v":25}]
[]
[null,null,null,null,null,null,null,null,null,null,null,null,null,null,null,null,null,null,null,null,null,null,null,null,null,null,null,null,null,null,null,{"$f":"AG10*AO14","v":100},{"$f":"ROUND(RAND()*(5-2)+2,0)","v":2},null,null,null,null,null,{"$f":"ROUND(RAND()*(4-1)+1,0)","v":3},1,10]
[null,{"$f":"\"Q2. Monica bought a box of wine glasses for £\"&AF10&\". The box contains \"&AF11&\" glasses.\"","v":"Q2. Monica bought a box of wine glasses for £100. The box contains 50 glasses."},null,null,null,null,null,null,null,null,null,null,null,null,null,null,null,null,null,null,null,null,null,null,null,null,null,null,null,null,null,{"$f":"AO14","v":50},{"$f":"AG10+ROUND(RAND()*(5-2)+2,0)","v":6},null,null,null,null,null,null,2,25]
[null,null,{"$f":"\"She sells each glass for £\"&AG11&\".\"","v":"She sells each glass for £6."},null,null,null,null,null,null,null,null,null,null,null,null,null,null,null,null,null,null,null,null,null,null,null,null,null,null,null,null,{"$f":"AG12-AF10","v":200},{"$f":"AG11*AF11","v":300},null,null,null,null,null,null,3,50]
[null,null,null,null,null,null,null,null,null,null,null,null,null,null,null,null,null,null,null,null,null,null,null,null,null,null,null,null,null,null,null,null,null,null,null,null,null,null,null,4,75]
[null,null,"How much PROFIT did she make ?",null,null,null,null,null,null,null,null,null,"£",null,null,null,null,null,null,null,null,null,null,null,null,null,null,null,null,null,null,null,null,null,null,null,null,null,null,null,{"$f":"LOOKUP(AM10,AN10:AN13,AO10:AO13)","v":50}]
[]
[]
[null,{"$f":"\"Q3. Mia bought a house for £\"&AF18&\".\"","v":"Q3. Mia bought a house for £110760."}]
[null,null,null,null,null,null,null,null,null,null,null,null,null,null,null,null,null,null,null,null,null,null,null,null,null,null,null,null,null,null,null,{"$f":"ROUND(RAND()*(500-90)+90,2)*1000","v":110760},"cost",null,null,null,null,null,{"$f":"ROUND(RAND()*(4-1)+1,0)","v":2},1,5]
[null,null,{"$f":"\"A year later she sold it for £\"&TEXT(AF20,\"0.00\")&\".\"","v":"A year later she sold it for £99684.00."},null,null,null,null,null,null,null,null,null,null,null,null,null,null,null,null,null,null,null,null,null,null,null,null,null,null,null,null,{"$f":"AO22/100*AF18","v":11076},null,null,null,null,null,null,null,2,10]
[null,null,null,null,null,null,null,null,null,null,null,null,null,null,null,null,null,null,null,null,null,null,null,null,null,null,null,null,null,null,null,{"$f":"AF18-AF19","v":99684},null,null,null,null,null,null,null,3,15]
[null,null,null,null,null,null,null,null,null,null,null,null,null,null,null,null,null,null,null,null,null,null,null,null,null,null,null,null,null,null,null,null,null,null,null,null,null,null,null,4,20]
[null,null,"How much was her LOSS ?",null,null,null,null,null,null,null,null,null,"£",null,null,null,null,null,null,null,null,null,null,null,null,null,null,null,null,null,null,null,null,null,null,null,null,null,null,null,{"$f":"LOOKUP(AM18,AN18:AN21,AO18:AO21)","v":10}]
[]
[null,null,null,null,null,null,null,null,null,null,null,null,null,null,null,null,null,null,null,null,null,null,null,null,null,null,null,null,null,null,null,{"$f":"ROUND(RAND()*(25-12)+12,0)*1000","v":25000}]
[null,"Q4. Daniel buys a new car using Hire Purchase.",null,null,null,null,null,null,null,null,null,null,null,null,null,null,"Years",null,null,"Monthly Payment",null,null,null,null,null,null,null,null,null,null,null,{"$f":"ROUND(RAND()*(5-3)+3,0)","v":5},{"$f":"AF25*12","v":60}]
[null,null,{"$f":"\"The cash price was £\"&AF24&\".\"","v":"The cash price was £25000."},null,null,null,null,null,null,null,null,null,null,null,null,null,{"$f":"AF25","v":5},null,null,{"$f":"\"£\"&AF26","v":"£417"},null,null,null,null,null,null,null,null,null,null,null,{"$f":"ROUNDUP(AF24/AG25,0)","v":417},"monthly"]
[null,null,null,null,null,null,null,null,null,null,null,null,null,null,null,null,null,null,null,null,null,null,null,null,null,null,null,null,null,null,null,{"$f":"10/100*AF24","v":2500}]
[null,null,"He must pay a 10% deposit and then the payments in the table shown.",null,null,null,null,null,null,null,null,null,null,null,null,null,null,null,null,null,null,null,null,null,null,null,null,null,null,null,null,{"$f":"AF27+AF26*AG25","v":27520}]
[null,null,null,null,null,null,null,null,null,null,null,null,null,null,null,null,null,null,null,null,null,null,null,null,null,null,null,null,null,null,null,{"$f":"ROUND(RAND()*(30-12)+12,0)*100","v":2500}]
[null,null,"How much more did he pay using HP.",null,null,null,null,null,null,null,null,null,"£",null,null,null,null,null,null,null,null,null,null,null,null,null,null,null,null,null,null,{"$f":"(AF28+AF29)-AF24","v":5020}]

{"sheet":"Foreign_Exchange","index":1,"n_rows":37,"n_cols":34,"rows_kept":37,"cut":false,"hidden":false,"merged":[[26,22,26,26],[2,1,3,27],[7,13,7,17],[5,22,5,26],[6,22,6,26],[10,22,10,26],[11,22,11,26],[13,13,13,17],[18,22,18,26],[19,22,19,26],[21,13,21,17],[27,22,27,26],[29,13,29,17],[33,22,33,26],[34,22,34,26],[36,13,36,17]]}
[]
[]
[null,"Level 2 - Money 2                                                                       (Foreign Exchange)                                                                                                                                                                                                                                                                                                    Created by Mr.Lafferty@mathsrevision.com"]
[]
[null,null,null,null,null,null,null,null,null,null,null,null,null,null,null,null,null,null,null,null,null,null,null,null,null,null,null,null,null,null,null,{"$f":"ROUND(RAND()*(2.45-1.15)+1.15,2)","v":1.31},"exchange rate"]
[null,{"$f":"\"Q1. Kyle is going to Spain on holiday and wants to exchange £\"&AF6&\" into euros.\"","v":"Q1. Kyle is going to Spain on holiday and wants to exchange £400 into euros."},null,null,null,null,null,null,null,null,null,null,null,null,null,null,null,null,null,null,null,null,"Exchange Rate",null,null,null,null,null,null,null,null,{"$f":"ROUND(RAND()*(90-40)+40,0)*10","v":400}]
[null,null,null,null,null,null,null,null,null,null,null,null,null,null,null,null,null,null,null,null,null,null,{"$f":"M8&TEXT(AF5,\"0.00\")&\" to the £\"","v":"€1.31 to the £"},null,null,null,null,null,null,null,null,{"$f":"AF5*AF6","v":524}]
[null,null,"How many euros will he receive ?",null,null,null,null,null,null,null,null,null,"€"]
[]
[null,null,null,null,null,null,null,null,null,null,null,null,null,null,null,null,null,null,null,null,null,null,null,null,null,null,null,null,null,null,null,{"$f":"ROUND(RAND()*(2.45-1.15)+1.15,2)","v":1.18},"exchange rate"]
[null,{"$f":"\"Q2. Wiktoria is coming over from Poland to Scotland on holiday.\"","v":"Q2. Wiktoria is coming over from Poland to Scotland on holiday."},null,null,null,null,null,null,null,null,null,null,null,null,null,null,null,null,null,null,null,null,"Exchange Rate",null,null,null,null,null,null,null,null,{"$f":"ROUND(RAND()*(90-40)+40,0)*10","v":740}]
[null,null,{"$f":"\"She needs to exchange \"&M8&TEXT(AF12,\"0.00\")&\" in £'s.\"","v":"She needs to exchange €873.20 in £'s."},null,null,null,null,null,null,null,null,null,null,null,null,null,null,null,null,null,null,null,{"$f":"M8&TEXT(AF10,\"0.00\")&\" to the £\"","v":"€1.18 to the £"},null,null,null,null,null,null,null,null,{"$f":"AF10*AF11","v":873.19999999999993}]
[]
[null,null,"How many pounds will she receive ?",null,null,null,null,null,null,null,null,null,"£"]
[]
[]
[null,{"$f":"\"Q3. While on holiday Linda bought a iphone in New York for \"&AF21&TEXT(AF20,\"0.00\")&\".\"","v":"Q3. While on holiday Linda bought a iphone in New York for $1169.60."}]
[null,null,{"$f":"\"Back home in Scotland she could buy the same iphone for £\"&AF23&\".\"","v":"Back home in Scotland she could buy the same iphone for £735."},null,null,null,null,null,null,null,null,null,null,null,null,null,null,null,null,null,null,null,null,null,null,null,null,null,null,null,null,{"$f":"ROUND(RAND()*(2.45-1.15)+1.15,2)","v":1.72},"exchange rate"]
[null,null,null,null,null,null,null,null,null,null,null,null,null,null,null,null,null,null,null,null,null,null,"Exchange Rate",null,null,null,null,null,null,null,null,{"$f":"ROUND(RAND()*(90-40)+40,0)*10","v":680}]
[null,null,{"$f":"AH22","v":"How much did she save buying it in New York."},null,null,null,null,null,null,null,null,null,null,null,null,null,null,null,null,null,null,null,{"$f":"AF21&TEXT(AF18,\"0.00\")&\" to the £\"","v":"$1.72 to the £"},null,null,null,null,null,null,null,null,{"$f":"AF18*AF19","v":1169.5999999999999}]
[null,null,null,null,null,null,null,null,null,null,null,null,null,null,null,null,null,null,null,null,null,null,null,null,null,null,null,null,null,null,null,"$"]
[null,null,null,null,null,null,null,null,null,null,null,null,"£",null,null,null,null,null,null,null,null,null,null,null,null,null,null,null,null,null,null,{"$f":"ROUND(RAND()*(70-10)+10,0)","v":55},{"$f":"ROUND(RAND()*(1-0)+0,0)","v":0},{"$f":"IF(AG22=1,\"How much could she have saved buying it in Scotland.\",\"How much did she save buying it in New York.\")","v":"How much did she save buying it in New York."}]
[null,null,null,null,null,null,null,null,null,null,null,null,null,null,null,null,null,null,null,null,null,null,null,null,null,null,null,null,null,null,null,{"$f":"IF(AG22=1,AF19-AF22,AF19+AF22)","v":735}]
[]
[null,{"$f":"\"Q4. John lives in Paris and is going on a 3 day trip to Glasgow before going to New York.\"","v":"Q4. John lives in Paris and is going on a 3 day trip to Glasgow before going to New York."}]
[null,null,{"$f":"\"He exchanged \"&M8&TEXT(AF28,\"0.00\")&\" to pounds.\"","v":"He exchanged €4752.00 to pounds."},null,null,null,null,null,null,null,null,null,null,null,null,null,null,null,null,null,null,null,null,null,null,null,null,null,null,null,null,{"$f":"ROUND(RAND()*(2.45-1.15)+1.15,2)","v":2.16},"exchange rate"]
[null,null,null,null,null,null,null,null,null,null,null,null,null,null,null,null,null,null,null,null,null,null,"Exchange Rate",null,null,null,null,null,null,null,null,{"$f":"ROUND(RAND()*(300-150)+150,0)*10","v":2200}]
[null,null,{"$f":"\"How much did he get in pounds.\"","v":"How much did he get in pounds."},null,null,null,null,null,null,null,null,null,null,null,null,null,null,null,null,null,null,null,{"$f":"M8&TEXT(AF26,\"0.00\")&\" to the £\"","v":"€2.16 to the £"},null,null,null,null,null,null,null,null,{"$f":"AF26*AF27","v":4752}]
[null,null,null,null,null,null,null,null,null,null,null,null,null,null,null,null,null,null,null,null,null,null,null,null,null,null,null,null,null,null,null,{"$f":"ROUND(RAND()*(50-11)+11,0)*10","v":500}]
[null,null,null,null,null,null,null,null,null,null,null,null,"£",null,null,null,null,null,null,null,null,null,null,null,null,null,null,null,null,null,null,{"$f":"ROUND(RAND()*(70-10)+10,0)","v":57}]
[null,null,null,null,null,null,null,null,null,null,null,null,null,null,null,null,null,null,null,null,null,null,null,null,null,null,null,null,null,null,null,{"$f":"IF(AG30=1,AF27-AF30,AF27+AF30)","v":2257}]
[null,null,{"$f":"\"While in Glasgow he spent £\"&AF29&\".\"","v":"While in Glasgow he spent £500."}]
[null,null,null,null,null,null,null,null,null,null,null,null,null,null,null,null,null,null,null,null,null,null,null,null,null,null,null,null,null,null,null,{"$f":"ROUND(RAND()*(2.45-1.15)+1.15,2)","v":1.72},"exchange rate"]
[null,null,null,null,null,null,null,null,null,null,null,null,null,null,null,null,null,null,null,null,null,null,"Exchange Rate",null,null,null,null,null,null,null,null,{"$f":"AF27-AF29","v":1700}]
[null,null,"How many dollars and cents did he have when he arrived in New York.",null,null,null,null,null,null,null,null,null,null,null,null,null,null,null,null,null,null,null,{"$f":"M37&TEXT(AF33,\"0.00\")&\" to the £\"","v":"$1.72 to the £"},null,null,null,null,null,null,null,null,{"$f":"AF33*AF34","v":2924}]
[]
[null,null,null,null,null,null,null,null,null,null,null,null,"$"]

{"sheet":"Best_Buys","index":2,"n_rows":52,"n_cols":60,"rows_kept":52,"cut":false,"hidden":false,"merged":[[45,4,45,15],[45,16,45,18],[45,52,45,57],[45,59,45,64],[51,24,51,31],[51,34,51,41],[49,24,49,31],[49,34,49,41],[50,24,50,29],[50,30,50,31],[50,34,50,39],[50,40,50,41],[47,24,47,31],[47,34,47,41],[47,59,47,64],[35,24,35,31],[35,34,35,41],[38,52,38,57],[39,52,39,57],[40,52,40,57],[44,38,44,39],[29,4,29,15],[29,16,29,18],[29,52,29,57],[29,59,29,64],[43,4,43,15],[43,16,43,18],[33,24,33,31],[33,34,33,41],[34,24,34,29],[34,30,34,31],[34,34,34,39],[34,40,34,41],[31,24,31,31],[31,34,31,41],[31,59,31,64],[19,24,19,31],[19,34,19,41],[22,52,22,57],[23,52,23,57],[24,52,24,57],[28,38,28,39],[27,4,27,15],[27,16,27,18],[17,24,17,31],[17,34,17,41],[18,24,18,29],[18,30,18,31],[18,34,18,39],[18,40,18,41],[13,4,13,15],[13,16,13,18],[13,52,13,57],[13,59,13,64],[15,27,15,29],[15,35,15,37],[15,59,15,64],[1,1,5,42],[6,52,6,57],[7,52,7,57],[10,52,10,57],[11,4,11,15],[11,16,11,18]]}
[]
[null,"Level 2 - Money 2                                                                                                               (Best Deals)                                                                                                                                                                                                                                                                                                    Created by Mr.Lafferty@mathsrevision.com    "]
[]
[]
[]
[]
[null,null,null,null,null,null,null,null,null,null,null,null,null,null,null,null,null,null,null,null,null,null,null,null,null,null,null,null,null,null,null,null,null,null,null,null,null,null,null,null,null,null,null,null,null,null,null,null,null,null,null,{"$f":"12*ROUND(RAND()*(17-7)+7,0)/100","v":0.96},"Full supermarket 1",null,null,null,null,null,{"$f":"AZ7","v":0.96}]
[null,null,"Q1. ",null,"Owen visits two supermarkets Prescos and Basda which have special deals on IRN - BRU. ",null,null,null,null,null,null,null,null,null,null,null,null,null,null,null,null,null,null,null,null,null,null,null,null,null,null,null,null,null,null,null,null,null,null,null,null,null,null,null,null,null,null,null,null,null,null,{"$f":"ROUND(RAND()*(4-2)+2,0)","v":3},"Fraction Discount"]
[]
[null,null,null,null,"From which supermarket should he buy the IRN - BRU from OR are they both the same price."]
[null,null,null,null,null,null,null,null,null,null,null,null,null,null,null,null,null,null,null,null,null,null,null,null,null,null,null,null,null,null,null,null,null,null,null,null,null,null,null,null,null,null,null,null,null,null,null,null,null,null,null,{"$f":"AZ7/AZ8*(AZ8-1)","v":0.64},"Sale Price 1"]
[null,null,null,null,"Pescos : Deal price is £",null,null,null,null,null,null,null,null,null,null,null,null,null,null,null,null,null,null,null,null,null,null,null,null,null,null,null,null,null,null,null,null,null,null,null,null,null,null,null,null,null,null,null,null,null,null,{"$f":"ROUND(RAND()*(1-0)+0,0)","v":1}]
[null,null,null,null,null,null,null,null,null,null,null,null,null,null,null,null,null,null,null,null,null,null,null,null,null,null,null,null,null,null,null,null,null,null,null,null,null,null,null,null,null,null,null,null,null,null,null,null,null,null,null,{"$f":"ROUND(IF(AZ12=0,(AZ11+ROUND(RAND()*(0.03-0.01)+0.01,2)),AZ11-(ROUND(RAND()*(0.03-0.01)+0.01,2))),2)","v":0.62}]
[null,null,null,null,"Basda : Deal price is £",null,null,null,null,null,null,null,null,null,null,null,null,null,null,null,null,null,null,null,null,null,null,null,null,null,null,null,null,null,null,null,null,null,null,null,null,null,null,null,null,null,null,null,null,null,null,{"$f":"ROUND(RAND()*(4-1)+1,0)*10","v":10},"% discount super2",null,null,null,null,null,{"$f":"ROUND(100/AZ15*AZ13,1)","v":0.7},"Full supermarket 2"]
[null,null,null,null,null,null,null,null,null,null,null,null,null,null,null,null,null,null,null,null,null,null,null,null,null,null,null,null,null,null,null,null,null,null,null,null,null,null,null,null,null,null,null,null,null,null,null,null,null,null,null,{"$f":"100-AZ14","v":90},null,null,null,null,null,null,{"$f":"AZ14/100*BG14","v":6.9999999999999993E-2},"Discount"]
[null,null,null,null,null,null,null,null,null,null,null,null,null,null,null,null,null,null,null,null,null,null,null,null,null,null,null,"500 ml",null,null,null,null,null,null,null,"500 ml",null,null,null,null,null,null,null,null,null,null,null,null,null,null,null,null,null,null,null,null,null,null,{"$f":"BG14-BG15","v":0.63},"Sale Price 2"]
[]
[null,null,null,null,null,null,null,null,null,null,null,null,null,null,null,null,null,null,null,null,null,null,null,null,{"$f":"\"Pesco's 1\"","v":"Pesco's 1"},null,null,null,null,null,null,null,null,null,{"$f":"\"Basda 2\"","v":"Basda 2"}]
[null,null,null,null,null,null,null,null,null,null,null,null,null,null,null,null,null,null,null,null,null,null,null,null,"Normal Price £",null,null,null,null,null,{"$f":"AZ7","v":0.96},null,null,null,"Normal Price £ ",null,null,null,null,null,{"$f":"BG14","v":0.7}]
[null,null,null,null,null,null,null,null,null,null,null,null,null,null,null,null,null,null,null,null,null,null,null,null,{"$f":"\"Now 1/\"&AZ8&\" OFF\"","v":"Now 1/3 OFF"},null,null,null,null,null,null,null,null,null,{"$f":"\"Now \"&AZ14&\" % OFF\"","v":"Now 10 % OFF"}]
[]
[]
[null,null,null,null,null,null,null,null,null,null,null,null,null,null,null,null,null,null,null,null,null,null,null,null,null,null,null,null,null,null,null,null,null,null,null,null,null,null,null,null,null,null,null,null,null,null,null,null,null,null,null,{"$f":"12*ROUND(RAND()*(30-7)+7,0)/100","v":3.48},"Full supermarket 1",null,null,null,null,null,{"$f":"AZ23","v":3.48}]
[null,null,"Q2.",null,"Caitlin visits two supermarkets Norrison and Sainsburgh which have special deals on Oranges. ",null,null,null,null,null,null,null,null,null,null,null,null,null,null,null,null,null,null,null,null,null,null,null,null,null,null,null,null,null,null,null,null,null,null,null,null,null,null,null,null,null,null,null,null,null,null,{"$f":"ROUND(RAND()*(4-2)+2,0)","v":3},"Fraction Discount"]
[null,null,null,null,null,null,null,null,null,null,null,null,null,null,null,null,null,null,null,null,null,null,null,null,null,null,null,null,null,null,null,null,null,null,null,null,null,null,null,null,null,null,null,null,null,null,null,null,null,null,null,{"$f":"AZ23/AZ24*(AZ24-1)","v":2.3199999999999998},"Sale Price 1"]
[null,null,null,null,"From which supermarket should she buy the Oranges from OR are they both the same price."]
[]
[null,null,null,null,"Norrison : Deal price is £",null,null,null,null,null,null,null,null,null,null,null,null,null,null,null,null,null,null,null,null,null,null,null,null,null,null,null,null,null,null,null,null,null,null,null,null,null,null,null,null,null,null,null,null,null,null,{"$f":"ROUND(RAND()*(1-0)+0,0)","v":0}]
[null,null,null,null,null,null,null,null,null,null,null,null,null,null,null,null,null,null,null,null,null,null,null,null,null,null,null,null,null,null,null,null,null,null,null,null,null,null,null,null,null,null,null,null,null,null,null,null,null,null,null,{"$f":"ROUND(IF(AZ28=0,(AZ25+ROUND(RAND()*(0.03-0.01)+0.01,2)),AZ25-(ROUND(RAND()*(0.03-0.01)+0.01,2))),2)","v":2.33}]
[null,null,null,null,"Sainsburgh : Deal price is £",null,null,null,null,null,null,null,null,null,null,null,null,null,null,null,null,null,null,null,null,null,null,null,null,null,null,null,null,null,null,null,null,null,null,null,null,null,null,null,null,null,null,null,null,null,null,{"$f":"ROUND(RAND()*(4-1)+1,0)*10","v":30},"% discount super2",null,null,null,null,null,{"$f":"ROUND(100/AZ31*AZ29,1)","v":3.3},"Full supermarket 2"]
[null,null,null,null,null,null,null,null,null,null,null,null,null,null,null,null,null,null,null,null,null,null,null,null,null,null,null,null,null,null,null,null,null,null,null,null,null,null,null,null,null,null,null,null,null,null,null,null,null,null,null,{"$f":"100-AZ30","v":70},null,null,null,null,null,null,{"$f":"AZ30/100*BG30","v":0.98999999999999988},"Discount"]
[null,null,null,null,null,null,null,null,null,null,null,null,null,null,null,null,null,null,null,null,null,null,null,null,"A bag of 5 oranges",null,null,null,null,null,null,null,null,null,"A bag of 5 oranges",null,null,null,null,null,null,null,null,null,null,null,null,null,null,null,null,null,null,null,null,null,null,null,{"$f":"BG30-BG31","v":2.31},"Sale Price 2"]
[]
[null,null,null,null,null,null,null,null,null,null,null,null,null,null,null,null,null,null,null,null,null,null,null,null,{"$f":"\"Supermarket 1\"","v":"Supermarket 1"},null,null,null,null,null,null,null,null,null,{"$f":"\"Supermarket 2\"","v":"Supermarket 2"}]
[null,null,null,null,null,null,null,null,null,null,null,null,null,null,null,null,null,null,null,null,null,null,null,null," Was   £",null,null,null,null,null,{"$f":"AZ23","v":3.48},null,null,null,"Was   £",null,null,null,null,null,{"$f":"BG30","v":3.3}]
[null,null,null,null,null,null,null,null,null,null,null,null,null,null,null,null,null,null,null,null,null,null,null,null,{"$f":"\"Now 1/\"&AZ24&\" OFF\"","v":"Now 1/3 OFF"},null,null,null,null,null,null,null,null,null,{"$f":"\"Now \"&AZ30&\" % OFF\"","v":"Now 30 % OFF"}]
[]
[]
[null,null,null,null,null,null,null,null,null,null,null,null,null,null,null,null,null,null,null,null,null,null,null,null,null,null,null,null,null,null,null,null,null,null,null,null,null,null,null,null,null,null,null,null,null,null,null,null,null,null,null,{"$f":"ROUND(RAND()*(2-0.8)+0.8,1)*2","v":2},"Full supermarket 1",null,null,null,null,null,{"$f":"AZ39","v":2}]
[null,null,"Q3.",null,"Aimee visits two shops Niceland and Auldi which have special deals on oven chips.. ",null,null,null,null,null,null,null,null,null,null,null,null,null,null,null,null,null,null,null,null,null,null,null,null,null,null,null,null,null,null,null,null,null,null,null,null,null,null,null,null,null,null,null,null,null,null,{"$f":"ROUND(RAND()*(8-2)+2,0)*5","v":15},"Fraction Discount"]
[null,null,null,null,null,null,null,null,null,null,null,null,null,null,null,null,null,null,null,null,null,null,null,null,null,null,null,null,null,null,null,null,null,null,null,null,null,null,null,null,null,null,null,null,null,null,null,null,null,null,null,{"$f":"AZ39-AZ40/100*AZ39","v":1.7},"Sale Price 1"]
[null,null,null,null,"From which shop should she buy the oven chips from OR are they both the same price."]
[]
[null,null,null,null,"Norrison : Deal price is £",null,null,null,null,null,null,null,null,null,null,null,null,null,null,null,null,null,null,null,null,null,null,null,null,null,null,null,null,null,null,null,null,null,null,null,null,null,null,null,null,null,null,null,null,null,null,{"$f":"ROUND(RAND()*(1-0)+0,0)","v":0}]
[null,null,null,null,null,null,null,null,null,null,null,null,null,null,null,null,null,null,null,null,null,null,null,null,null,null,null,null,null,null,null,null,null,null,null,null,null,null,null,null,null,null,null,null,null,null,null,null,null,null,null,{"$f":"ROUND(IF(AZ44=0,(AZ41+ROUND(RAND()*(0.03-0.01)+0.01,2)),AZ41-(ROUND(RAND()*(0.03-0.01)+0.01,2))),2)","v":1.71}]
[null,null,null,null,"Sainsburgh : Deal price is £",null,null,null,null,null,null,null,null,null,null,null,null,null,null,null,null,null,null,null,null,null,null,null,null,null,null,null,null,null,null,null,null,null,null,null,null,null,null,null,null,null,null,null,null,null,null,{"$f":"ROUND(RAND()*(4-1)+1,0)*10","v":20},"% discount super2",null,null,null,null,null,{"$f":"ROUND(100/AZ47*AZ45,1)","v":2.1},"Full supermarket 2"]
[null,null,null,null,null,null,null,null,null,null,null,null,null,null,null,null,null,null,null,null,null,null,null,null,null,null,null,null,null,null,null,null,null,null,null,null,null,null,null,null,null,null,null,null,null,null,null,null,null,null,null,{"$f":"100-AZ46","v":80},null,null,null,null,null,null,{"$f":"AZ46/100*BG46","v":0.42000000000000004},"Discount"]
[null,null,null,null,null,null,null,null,null,null,null,null,null,null,null,null,null,null,null,null,null,null,null,null,"2.25 kg bag",null,null,null,null,null,null,null,null,null,"2.25 kg bag",null,null,null,null,null,null,null,null,null,null,null,null,null,null,null,null,null,null,null,null,null,null,null,{"$f":"BG46-BG47","v":1.6800000000000002},"Sale Price 2"]
[]
[null,null,null,null,null,null,null,null,null,null,null,null,null,null,null,null,null,null,null,null,null,null,null,null,{"$f":"\"Shop 1\"","v":"Shop 1"},null,null,null,null,null,null,null,null,null,{"$f":"\"Shop 2\"","v":"Shop 2"}]
[null,null,null,null,null,null,null,null,null,null,null,null,null,null,null,null,null,null,null,null,null,null,null,null," Was   £",null,null,null,null,null,{"$f":"AZ39","v":2},null,null,null,"Was   £",null,null,null,null,null,{"$f":"BG46","v":2.1}]
[null,null,null,null,null,null,null,null,null,null,null,null,null,null,null,null,null,null,null,null,null,null,null,null,{"$f":"\"Now \"&AZ40&\" % OFF\"","v":"Now 15 % OFF"},null,null,null,null,null,null,null,null,null,{"$f":"\"Now \"&AZ46&\" % OFF\"","v":"Now 20 % OFF"}]